bitfinex-derivatives/quotes_SOLF0:USTF0_20250520
["timestamp","ask_amount","ask_price","bid_price","bid_amount"]
[1747711901559,5.9015,169.41,169.36,5.9032]
[1747711902348,0.04070932,169.42,169.35,5.9034]
[1747711903560,5.9018,169.4,169.35,5.9034]
[1747711905062,0.04070932,169.42,169.34,133.41018592]
[1747711906461,5.902,169.4,169.34,133.41018592]
[1747711906662,0.04070932,169.42,169.34,133.41018592]
[1747711907361,5.9017,169.41,169.36,5.9029]
[1747711908262,5.9019,169.4,169.35,5.9034]
[1747711908464,0.04070932,169.42,169.35,5.9034]
[1747711909463,5.9018,169.4,169.35,5.9034]
[1747711909764,0.04070932,169.42,169.34,139.31408592]
[1747711910065,5.9024,169.39,169.34,139.31408592]
[1747711910265,0.0405948,169.38,169.34,139.31408592]
[1747711910665,0.0405948,169.38,169.34,133.41018592]
[1747711910862,5.9029,169.37,169.34,133.41018592]
[1747711911062,0.0405948,169.38,169.34,139.31388592]
[1747711911263,0.0405948,169.38,169.34,133.41018592]
[1747711911466,5.9031,169.37,169.34,133.41018592]
[1747711911666,5.9031,169.37,169.34,139.31398592]
[1747711912369,5.9031,169.37,169.34,133.41018592]
[1747711913666,5.9031,169.37,169.34,139.31398592]
[1747711913968,5.9031,169.37,169.34,5.9038]
[1747711914968,5.9031,169.37,169.33,5.9041]
[1747711915168,5.9033,169.36,169.3,5.8574]
[1747711915467,5.9033,169.36,169.3,1.9729]
[1747711915967,5.9033,169.36,169.32,5.9045]
[1747711916362,5.9035,169.35,169.32,5.9045]
[1747711916764,5.9039,169.35,169.29,585.16]
[1747711916964,0.04000185,169.34,169.29,75.24]
[1747711917163,0.04000185,169.34,169.31,5.9048]
[1747711917664,0.04000185,169.34,169.29,75.24]
[1747711918266,0.04000185,169.34,169.32,5.9045]
[1747711919172,0.04000185,169.34,169.29,75.24]
[1747711919673,0.04000185,169.34,169.31,5.9047]
[1747711920274,0.04000185,169.34,169.29,5.9054]
[1747711920476,0.04000185,169.34,169.26,1.9151]
[1747711920776,0.04000185,169.34,169.26,5.9064]
[1747711921170,75.24,169.33,169.25,75.87514399]
[1747711921369,75.24,169.33,169.25,81.78184399]
[1747711921775,75.24,169.33,169.25,75.87514399]
[1747711922474,81.1443,169.33,169.29,5.9054]
[1747711923077,5.9046,169.32,169.28,5.9058]
[1747711923276,75.24,169.33,169.25,75.87514399]
[1747711923472,0.04253551,169.31,169.25,75.24]
[1747711924183,0.04253551,169.31,169.22,141.28279158]
[1747711924373,0.04253551,169.31,169.21,75.26]
[1747711924577,6.28232349,169.3,169.2,5.9087]
[1747711924880,0.04304409,169.27,169.18,0.61979137]
[1747711925078,5.9076,169.24,169.19,5.9091]
[1747711925379,0.03947958,169.23,169.18,0.61979137]
[1747711926179,0.03947958,169.23,169.19,5.9091]
[1747711926380,0.03947958,169.23,169.16,0.82732479]
[1747711927178,5.94717958,169.23,169.16,0.82732479]
[1747711927480,75.31947958,169.23,169.16,0.82732479]
[1747711927676,5.9081,169.22,169.18,5.9093]
[1747711927881,75.31947958,169.23,169.1,81.56232349]
[1747711928070,0.03943022,169.18,169.08,139.95872597]
[1747711928274,6.29682133,169.16,169.09,5.9126]
[1747711928475,0.03830444,169.14,169.09,5.9126]
[1747711928672,0.03830444,169.14,169.08,0.61870485]
[1747711929080,0.03830444,169.14,169.03,1.24239164]
[1747711929274,6.29682133,169.16,168.99,82.35708872]
[1747711929275,0.04230154,169.1,168.99,80.69682133]
[1747711929480,5.9757,169.19,168.99,80.69682133]
[1747711929481,74.42,169.11,168.99,74.4]
[1747711929779,0.03919671,169.07,168.99,74.4]
[1747711930181,0.03919671,169.07,169.06,5.9137]
[1747711931482,0.03919671,169.07,169.05,5.9139]
[1747711932481,0.03919671,169.07,169.06,5.9137]
[1747711933276,0.03919671,169.07,169.05,5.9139]
[1747711933678,0.03919671,169.07,169.02,1.9601]
[1747711933870,0.03919671,169.07,169.0,74.46]
[1747711934077,0.03919671,169.07,168.97,3.8329]
[1747711934286,5.9142,169.05,168.97,3.8329]
[1747711934581,0.04090292,169.03,168.99,5.9158]
[1747711935180,0.04090292,169.03,169.01,5.9153]
[1747711935380,0.04090292,169.03,168.95,86.44252929]
[1747711935783,0.04090292,169.03,169.02,5.9151]
[1747711937182,74.48,169.11,169.07,5.9131]
[1747711937773,74.48,169.11,169.05,5.9137]
[1747711938078,0.04041829,169.1,169.06,0.03914794]
[1747711938781,1.98541829,169.1,169.06,0.03914794]
[1747711939187,5.92671829,169.1,169.06,0.03914794]
[1747711939582,5.9127,169.09,169.06,0.03914794]
[1747711939781,5.92671829,169.1,168.96,1.9182]
[1747711940078,5.8863,169.1,168.96,76.3982]
[1747711940274,5.8863,169.1,168.88,1.0297686]
[1747711940482,5.8863,169.1,168.91,10.07672929]
[1747711940682,5.8863,169.1,168.92,1.8871]
[1747711940881,0.03776636,169.03,168.92,1.8871]
[1747711941082,5.9137,169.06,168.92,1.8871]
[1747711941083,0.04242684,168.99,168.93,3.8242]
[1747711941281,0.04242684,168.99,168.94,74.5]
[1747711942282,0.04242684,168.99,168.97,5.9166]
[1747711942485,0.04242684,168.99,168.94,74.5]
[1747711942879,0.04242684,168.99,168.98,5.9165]
[1747711944098,5.8863,169.1,168.97,0.04359363]
[1747711944281,74.52,169.09,168.94,74.5]
[1747711945198,0.04303658,169.03,169.0,0.04302306]
[1747711946099,5.9154,169.01,168.95,5.9172]
[1747711946292,4.19593658,169.03,168.89,76.5732]
[1747711946494,5.9155,169.01,168.94,5.9176]
[1747711947097,0.03759117,168.99,168.78,74.52]
[1747711947294,0.04081462,168.92,168.83,10.07672929]
[1747711947498,0.04081462,168.92,168.84,74.52]
[1747711947796,0.04081462,168.92,168.84,84.59672929]
[1747711948094,0.04081462,168.92,168.87,5.9201]
[1747711948495,0.04081462,168.92,168.77,74.52]
[1747711948798,0.04254715,168.86,168.78,10.07672929]
[1747711948993,0.04254715,168.86,168.82,10.07672929]
[1747711949189,0.04254715,168.86,168.85,5.921]
[1747711949697,80.5342,168.94,168.86,5.9204]
[1747711949892,80.5342,168.94,168.83,1.8996]
[1747711950498,0.03793266,168.9,168.87,0.04276215]
[1747711950801,4.0252,169.0,168.89,10.07672929]
[1747711951099,74.54,169.18,168.97,10.07672929]
[1747711951300,2.0475,169.12,168.98,76.4189]
[1747711951493,74.54,169.11,168.98,76.4189]
[1747711951692,0.04536907,169.06,169.03,0.04460875]
[1747711952098,1.9683,169.14,169.04,84.61672929]
[1747711952497,5.9116,169.12,169.06,5.9136]
[1747711952697,1.9683,169.14,169.06,5.9136]
[1747711952896,1.9683,169.14,169.04,74.54]
[1747711953097,0.04404993,169.11,169.07,0.03989941]
[1747711954602,5.913,169.08,169.07,0.03989941]
[1747711955598,0.04404993,169.11,168.97,1.9187]
[1747711955799,74.54,169.08,168.97,1.9187]
[1747711956098,74.54,169.1,168.97,1.9187]
[1747711956295,74.54,169.1,168.98,1.9199]
[1747711956500,80.4523,169.1,168.98,11.99662929]
[1747711956703,0.04479146,169.06,169.02,0.03835675]
[1747711961909,0.04479146,169.06,169.02,2.02055675]
[1747711962511,0.04479146,169.06,169.02,0.03835675]
[1747711963016,5.95849146,169.06,169.02,0.03835675]
[1747711963210,0.04479146,169.06,169.02,0.03835675]
[1747711964106,5.9143,169.05,169.02,0.03835675]
[1747711964312,0.04479146,169.06,169.02,0.03835675]
[1747711964909,5.9141,169.05,169.02,0.03835675]
[1747711965111,0.04479146,169.06,169.02,0.03835675]
[1747711966114,0.04479146,169.06,169.05,5.914]
[1747711966812,0.04479146,169.06,169.04,5.9143]
[1747711967112,79.3908,169.15,169.02,0.03835675]
[1747711967317,73.48,169.15,169.02,10.07672929]
[1747711967708,73.48,169.15,168.99,73.48]
[1747711968115,0.04150455,169.09,169.05,0.04268218]
[1747711968917,0.04150455,169.09,169.08,5.9129]
[1747711969417,0.04150455,169.09,169.05,4.00438218]
[1747711969814,0.04150455,169.09,169.05,1.99198218]
[1747711970020,0.04150455,169.09,169.05,5.95658218]
[1747711970316,0.04150455,169.09,169.05,0.04268218]
[1747711971718,5.95420455,169.09,169.05,0.04268218]
[1747711971920,0.04150455,169.09,169.05,5.95668218]
[1747711972122,0.04150455,169.09,169.05,0.04268218]
[1747711973020,0.04150455,169.09,169.05,5.95638218]
[1747711973219,0.04150455,169.09,169.05,0.04268218]
[1747711973823,0.04150455,169.09,169.05,5.95658218]
[1747711974317,0.04150455,169.09,169.05,0.04268218]
[1747711974518,0.04150455,169.09,168.95,73.46]
[1747711974821,3.9006,169.1,168.96,12.71375352]
[1747711975023,5.9141,169.05,169.0,5.9157]
[1747711975215,3.9006,169.1,168.96,12.13272929]
[1747711975410,0.04469311,169.05,169.01,0.04248106]
[1747711976023,5.9146,169.04,169.01,0.04248106]
[1747711976711,5.95879311,169.05,169.01,0.04248106]
[1747711977021,0.04469311,169.05,169.01,0.04248106]
[1747711978016,0.04469311,169.05,169.02,5.9148]
[1747711978222,0.04469311,169.05,169.01,0.04248106]
[1747711979023,5.95889311,169.05,169.01,0.04248106]
[1747711979226,0.04469311,169.05,169.01,0.04248106]
[1747711979933,0.04469311,169.05,169.04,5.9143]
[1747711984421,0.04469311,169.05,169.01,0.04248106]
[1747711985128,0.04469311,169.05,169.03,5.9146]
[1747711985421,0.04469311,169.05,169.01,0.04248106]
[1747711985624,0.04469311,169.05,169.04,5.9143]
[1747711986123,0.04469311,169.05,169.03,5.9146]
[1747711986322,0.04469311,169.05,169.01,0.04248106]
[1747711986725,5.95879311,169.05,169.01,0.04248106]
[1747711987024,0.04469311,169.05,169.01,0.04248106]
[1747711987425,0.04469311,169.05,169.03,5.9144]
[1747711988328,0.04469311,169.05,169.02,5.9149]
[1747711989329,0.04469311,169.05,169.01,5.95778106]
[1747711990027,0.04469311,169.05,169.02,5.9148]
[1747711991428,0.04469311,169.05,169.03,5.9147]
[1747711991726,0.04469311,169.05,169.01,0.04248106]
[1747711992528,0.04469311,169.05,169.01,5.95778106]
[1747711993022,0.04469311,169.05,169.01,0.04248106]
[1747711993228,5.95899311,169.05,169.01,0.04248106]
[1747711993423,0.04469311,169.05,169.01,0.04248106]
[1747711993830,71.98469311,169.05,168.94,71.94]
[1747711994030,3.9668,169.04,168.94,71.94]
[1747711994529,3.9668,169.04,168.88,11.98922929]
[1747711994530,3.9668,169.04,168.9,71.94]
[1747711995033,0.03864674,168.99,168.95,0.03933884]
[1747711995831,5.95484674,168.99,168.95,5.95673884]
[1747711996229,0.03864674,168.99,168.95,5.95673884]
[1747711996733,0.03864674,168.99,168.95,0.03933884]
[1747711997232,0.03864674,168.99,168.96,5.917]
[1747711997535,0.03864674,168.99,168.95,0.03933884]
[1747711997727,0.03864674,168.99,168.95,71.99933884]
[1747711998030,0.03864674,168.99,168.95,0.03933884]
[1747712001032,0.03864674,168.99,168.96,5.9168]
[1747712001535,5.95484674,168.99,168.95,5.95673884]
[1747712001832,0.03864674,168.99,168.95,5.95673884]
[1747712002131,5.95474674,168.99,168.95,5.95673884]
[1747712002523,0.03864674,168.99,168.95,0.03933884]
[1747712003532,0.03864674,168.99,168.97,5.9166]
[1747712004334,0.03864674,168.99,168.98,5.9164]
[1747712006639,0.03864674,168.99,168.96,71.98]
[1747712007537,0.03864674,168.99,168.98,5.9164]
[1747712008037,0.03864674,168.99,168.96,77.8968]
[1747712008240,0.03864674,168.99,168.96,71.98]
[1747712008738,0.03864674,168.99,168.96,77.8971]
[1747712009239,0.03864674,168.99,168.96,5.9171]
[1747712009638,0.03864674,168.99,168.95,5.95683884]
[1747712009841,0.03864674,168.99,168.95,0.03933884]
[1747712010638,0.03864674,168.99,168.98,5.9164]
[1747712010833,0.03864674,168.99,168.95,0.03933884]
[1747712011234,0.03864674,168.99,168.97,5.9166]
[1747712011435,0.03864674,168.99,168.95,0.03933884]
[1747712011931,0.03864674,168.99,168.96,5.917]
[1747712012132,0.03864674,168.99,168.95,0.03933884]
[1747712012340,5.9167,168.98,168.95,5.95673884]
[1747712012531,0.03864674,168.99,168.95,0.03933884]
[1747712012732,0.03864674,168.99,168.86,73.939]
[1747712013037,82.05672929,169.0,168.91,5.9188]
[1747712013239,82.05672929,169.0,168.86,73.939]
[1747712013636,5.9181,168.94,168.9,5.919]
[1747712013844,0.04413207,168.95,168.86,73.939]
[1747712014037,0.04413207,168.95,168.94,5.9178]
[1747712017341,0.04413207,168.95,168.91,71.98]
[1747712017342,0.04413207,168.95,168.93,5.9181]
[1747712017641,0.04413207,168.95,168.91,71.98]
[1747712018042,0.04413207,168.95,168.93,5.9181]
[1747712018451,5.96173207,168.95,168.9,5.9191]
[1747712018745,0.04413207,168.95,168.86,73.939]
[1747712019146,0.04413207,168.95,168.91,5.9186]
[1747712020246,0.04413207,168.95,168.86,73.939]
[1747712020953,5.918,168.94,168.86,73.939]
[1747712021144,0.04413207,168.95,168.86,73.939]
[1747712022049,5.9182,168.93,168.86,71.98]
[1747712022251,0.0449964,168.91,168.86,71.98]
[1747712022654,0.0449964,168.91,168.88,5.9199]
[1747712022858,0.0449964,168.91,168.86,71.98]
[1747712023155,0.0449964,168.91,168.9,5.9192]
[1747712024458,9.64e-05,168.91,168.9,5.9192]
[1747712026558,9.64e-05,168.91,168.89,5.95846363]
[1747712026856,9.64e-05,168.91,168.89,0.03896363]
[1747712027048,5.9191964,168.91,168.89,0.03896363]
[1747712027247,9.64e-05,168.91,168.89,0.03896363]
[1747712028048,5.9200964,168.91,168.66,35.5644]
[1747712028351,12.09598333,168.9,168.73,1.978]
[1747712028558,1.943,168.89,168.74,83.45608333]
[1747712028745,1.943,168.89,168.75,1.9481]
[1747712029151,0.04318144,168.84,168.82,5.9218]
[1747712029755,0.04318144,168.84,168.83,5.9217]
[1747712030755,71.44,168.93,168.83,5.9217]
[1747712030955,71.44,168.93,168.81,12.03058333]
[1747712031158,65.52,168.93,168.81,12.03058333]
[1747712031356,71.4382,168.93,168.88,5.9199]
[1747712031553,4.065,168.95,168.7,10.11079672]
[1747712031753,71.46,168.94,168.74,13.92819672]
[1747712031953,0.04089534,168.84,168.82,5.9218]
[1747712032256,0.04308361,168.85,168.81,0.03755093]
[1747712032457,0.04536189,168.85,168.81,0.04474194]
[1747712034649,5.9221,168.82,168.81,0.04474194]
[1747712036758,71.46,168.84,168.81,0.04474194]
[1747712037259,5.9221,168.82,168.81,0.04474194]
[1747712037454,77.38,168.84,168.59,11.86]
[1747712037657,5.9239,168.77,168.7,73.4379]
[1747712037958,71.46,168.84,168.7,73.4379]
[1747712038358,5.9244,168.76,168.7,73.4379]
[1747712038560,0.04533067,168.75,168.7,73.4379]
[1747712039161,0.04533067,168.75,168.71,5.9257]
[1747712039366,5.96983067,168.75,168.7,73.4379]
[1747712039765,0.04533067,168.75,168.7,73.4379]
[1747712039964,5.925,168.74,168.7,73.4379]
[1747712040361,0.04533067,168.75,168.7,73.4379]
[1747712040563,5.97013067,168.75,168.7,79.364]
[1747712041074,5.97013067,168.75,168.7,79.3641]
[1747712041371,0.04533067,168.75,168.69,0.48416803]
[1747712041664,0.04533067,168.75,168.71,5.9256]
[1747712041855,0.04533067,168.75,168.7,71.48]
[1747712042055,0.04533067,168.75,168.74,5.9249]
[1747712042270,0.04533067,168.75,168.7,71.48]
[1747712043168,71.48,168.83,168.7,71.48]
[1747712043369,2.0709,168.87,168.72,10.11892547]
[1747712043563,5.9218,168.83,168.73,3.9626]
[1747712043865,5.9218,168.83,168.78,5.9232]
[1747712044066,0.03743322,168.82,168.79,0.04232202]
[1747712044562,0.03743322,168.82,168.79,5.96522202]
[1747712044768,0.03743322,168.82,168.79,0.04232202]
[1747712045768,0.03743322,168.82,168.81,5.9224]
[1747712046568,2.0183,168.91,168.84,5.9212]
[1747712046769,2.0183,168.91,168.82,71.5]
[1747712047071,7.9372,168.91,168.82,71.5]
[1747712047566,0.03728767,168.88,168.86,5.9206]
[1747712047772,0.03728767,168.88,168.85,0.04294999]
[1747712047971,0.03728767,168.88,168.86,5.9206]
[1747712048679,0.03728767,168.88,168.87,5.9203]
[1747712048969,0.03728767,168.88,168.87,77.4003]
[1747712049376,0.03728767,168.88,168.87,83.3203]
[1747712049673,10.87315922,168.95,168.91,10.11892547]
[1747712049862,14.49754563,169.01,168.92,71.48]
[1747712050269,1.9313,169.07,168.97,5.9167]
[1747712050270,1.9835,169.06,168.97,5.9167]
[1747712050469,0.03974562,169.03,169.0,0.04250811]
[1747712053076,0.03974562,169.03,169.0,5.95820811]
[1747712053775,0.03974562,169.03,169.0,0.04250811]
[1747712055074,0.03974562,169.03,169.02,5.915]
[1747712055579,0.03974562,169.03,169.01,5.9153]
[1747712055878,0.03974562,169.03,169.0,0.04250811]
[1747712056577,0.03974562,169.03,169.0,5.95810811]
[1747712057881,0.03974562,169.03,169.01,5.9154]
[1747712058179,0.03974562,169.03,169.0,0.04250811]
[1747712059683,5.95444562,169.03,169.0,0.04250811]
[1747712060183,5.9152,169.02,169.0,0.04250811]
[1747712060584,0.03974562,169.03,169.0,0.04250811]
[1747712060782,5.9154,169.01,169.0,0.04250811]
[1747712061082,0.03974562,169.03,168.98,71.62]
[1747712061478,5.916,169.0,168.98,71.62]
[1747712061680,0.03974562,169.03,168.98,71.62]
[1747712061982,5.95454562,169.03,168.99,0.03879056]
[1747712063683,0.03974562,169.03,168.99,5.95479056]
[1747712063882,0.03974562,169.03,168.99,0.03879056]
[1747712064082,0.03974562,169.03,168.91,511.8]
[1747712064285,5.9167,168.98,168.89,71.56]
[1747712064485,1.9268,169.02,168.9,71.56]
[1747712064685,1.9268,169.02,168.91,71.56]
[1747712065188,0.04166555,168.98,168.95,0.04273206]
[1747712065387,5.9169,168.97,168.95,0.04273206]
[1747712065589,0.04166555,168.98,168.95,0.04273206]
[1747712066284,0.04166555,168.98,168.96,5.917]
[1747712066981,0.04166555,168.98,168.95,0.04273206]
[1747712067577,5.917,168.97,168.95,0.04273206]
[1747712067782,1.9597,168.97,168.86,71.56]
[1747712068085,1.9597,168.97,168.85,71.56]
[1747712068677,0.04023044,168.93,168.84,0.46232678]
[1747712068981,5.919,168.91,168.86,5.9203]
[1747712069391,0.04023044,168.93,168.86,5.9203]
[1747712069693,0.04023044,168.93,168.87,5.9203]
[1747712069882,5.9186,168.92,168.84,0.46232678]
[1747712070892,0.04023044,168.93,168.83,582.92]
[1747712071182,0.04071969,168.9,168.83,582.92]
[1747712071491,0.04071969,168.9,168.89,5.9194]
[1747712071788,0.04071969,168.9,168.88,71.58]
[1747712072589,0.04071969,168.9,168.84,71.58]
[1747712072886,5.92,168.88,168.84,77.5012]
[1747712073082,0.04071969,168.9,168.84,77.5012]
[1747712073482,5.9198,168.89,168.84,77.5012]
[1747712073687,0.04071969,168.9,168.84,71.58]
[1747712073985,5.922,168.83,168.76,71.58]
[1747712074189,0.03999561,168.81,168.76,71.58]
[1747712074489,5.96269561,168.81,168.76,71.58]
[1747712074689,0.03999561,168.81,168.76,71.58]
[1747712075182,0.03999561,168.81,168.8,5.9228]
[1747712075584,0.03999561,168.81,168.76,71.58]
[1747712076880,0.03999561,168.81,168.78,5.9232]
[1747712077889,0.03999561,168.81,168.76,5.9241]
[1747712078481,16.07844337,168.81,168.49,17.68]
[1747712078680,0.03945404,168.67,168.58,10.12274744]
[1747712078881,1.792e-05,168.64,168.63,5.9287]
[1747712079090,71.6,168.75,168.63,71.6]
[1747712079591,5.9249,168.74,168.63,71.6]
[1747712079792,71.6,168.75,168.63,71.6]
[1747712079992,0.04434887,168.71,168.69,5.9263]
[1747712080192,0.04434887,168.71,168.67,0.04253242]
[1747712080593,0.04434887,168.71,168.69,5.9266]
[1747712080891,0.04434887,168.71,168.67,0.04253242]
[1747712080892,1.9364,168.8,168.68,74.78]
[1747712081699,1.9364,168.8,168.73,5.9252]
[1747712081996,0.04340857,168.78,168.75,0.03781582]
[1747712082789,0.04340857,168.78,168.77,5.9238]
[1747712084297,2.0114,168.85,168.82,5.9219]
[1747712084498,2.0114,168.85,168.78,74.8]
[1747712084802,1.9752,168.86,168.78,74.8]
[1747712085015,1.9752,168.86,168.84,5.9211]
[1747712085210,1.9752,168.86,168.78,74.8]
[1747712085407,0.04431396,168.84,168.83,5.9214]
[1747712085711,0.04431396,168.84,168.8,0.03966477]
[1747712085910,0.04431396,168.84,168.81,5.9223]
[1747712086606,0.04431396,168.84,168.8,0.03966477]
[1747712087009,0.04431396,168.84,168.83,5.9217]
[1747712087207,0.04431396,168.84,168.8,0.03966477]
[1747712088110,0.04431396,168.84,168.81,5.9223]
[1747712088316,0.04431396,168.84,168.8,0.03966477]
[1747712088713,0.04431396,168.84,168.83,5.9217]
[1747712089413,0.04431396,168.84,168.82,5.9218]
[1747712089612,0.04431396,168.84,168.8,0.03966477]
[1747712089813,0.04431396,168.84,168.83,5.9217]
[1747712093312,0.04431396,168.84,168.8,0.03966477]
[1747712094610,5.96601396,168.84,168.8,0.03966477]
[1747712094917,0.04431396,168.84,168.8,0.03966477]
[1747712095113,5.96591396,168.84,168.8,5.96236477]
[1747712095313,5.96591396,168.84,168.8,0.03966477]
[1747712095616,5.9218,168.83,168.8,0.03966477]
[1747712095813,0.04431396,168.84,168.8,0.03966477]
[1747712096907,5.9219,168.83,168.8,0.03966477]
[1747712097109,0.04431396,168.84,168.8,0.03966477]
[1747712097323,5.9221,168.82,168.7,511.82]
[1747712097514,5.9221,168.82,168.71,74.8]
[1747712097715,74.8,168.84,168.71,74.8]
[1747712098324,0.04037594,168.79,168.76,0.042816]
[1747712098618,0.04037594,168.79,168.78,5.9232]
[1747712100721,0.04037594,168.79,168.76,74.842816]
[1747712100917,0.04037594,168.79,168.76,0.042816]
[1747712101121,0.04037594,168.79,168.78,5.9234]
[1747712101417,0.04037594,168.79,168.76,0.042816]
[1747712101816,0.04037594,168.79,168.77,5.9237]
[1747712102016,0.04037594,168.79,168.76,0.042816]
[1747712102820,0.04037594,168.79,168.76,5.966716]
[1747712103021,0.04037594,168.79,168.76,0.042816]
[1747712103222,0.04037594,168.79,168.78,5.9234]
[1747712107926,0.04037594,168.79,168.76,74.862816]
[1747712108519,0.04037594,168.79,168.76,80.786716]
[1747712108720,0.04037594,168.79,168.76,74.862816]
[1747712108918,0.04037594,168.79,168.76,0.042816]
[1747712109926,0.04037594,168.79,168.76,5.966716]
[1747712110327,0.04037594,168.79,168.77,5.9237]
[1747712110727,0.04037594,168.79,168.76,0.042816]
[1747712111328,0.04037594,168.79,168.77,5.9235]
[1747712111527,0.04037594,168.79,168.76,0.042816]
[1747712111931,0.04037594,168.79,168.77,5.9238]
[1747712112528,0.04037594,168.79,168.76,0.042816]
[1747712112529,0.04037594,168.79,168.76,5.966916]
[1747712113321,0.04037594,168.79,168.77,5.9237]
[1747712113528,0.04037594,168.79,168.76,0.042816]
[1747712113928,0.04037594,168.79,168.77,5.9238]
[1747712114233,0.04037594,168.79,168.76,0.042816]
[1747712114432,0.04037594,168.79,168.76,5.966816]
[1747712114934,0.04037594,168.79,168.76,0.042816]
[1747712115933,5.96357594,168.79,168.76,0.042816]
[1747712116333,0.04037594,168.79,168.76,0.042816]
[1747712116931,0.04037594,168.79,168.76,5.966716]
[1747712117435,0.04037594,168.79,168.76,0.042816]
[1747712119235,0.04037594,168.79,168.76,5.966916]
[1747712119636,0.04037594,168.79,168.76,0.042816]
[1747712119841,0.04037594,168.79,168.78,5.9234]
[1747712121038,7.594e-05,168.79,168.78,5.9234]
[1747712121239,5.40356206,168.85,168.84,5.9213]
[1747712122034,2.0243,168.9,168.81,75.0]
[1747712122233,0.03935831,168.87,168.84,0.04230326]
[1747712122941,0.03935831,168.87,168.86,5.9206]
[1747712123129,2.0243,168.95,168.86,75.0]
[1747712123830,2.0243,168.95,168.9,5.9192]
[1747712124334,0.04401808,168.94,168.91,0.03930574]
[1747712124538,0.04521879,168.94,168.91,75.0207054]
[1747712126833,0.04521879,168.94,168.91,80.9395054]
[1747712128241,0.04521879,168.94,168.92,5.9185]
[1747712128743,0.04521879,168.94,168.91,75.0207054]
[1747712128937,0.04521879,168.94,168.93,5.9182]
[1747712129138,0.04521879,168.94,168.91,75.0207054]
[1747712130237,0.04521879,168.94,168.91,75.0007054]
[1747712131645,0.04521879,168.94,168.91,80.9193054]
[1747712131844,0.04521879,168.94,168.91,75.0007054]
[1747712132439,0.04521879,168.94,168.91,0.0407054]
[1747712132640,4.13001879,168.94,168.91,0.0407054]
[1747712132934,4.13001879,168.94,168.87,74.96]
[1747712133137,2.0508,168.93,168.87,74.96]
[1747712133745,5.9193,168.9,168.87,74.96]
[1747712133942,0.04124101,168.9,168.87,74.99954833]
[1747712134340,0.04124101,168.9,168.89,5.9196]
[1747712134942,0.04124101,168.9,168.87,74.99954833]
[1747712135344,0.04124101,168.9,168.87,80.91954833]
[1747712136243,0.04124101,168.9,168.88,5.9199]
[1747712136443,0.04124101,168.9,168.87,74.99954833]
[1747712136841,0.04124101,168.9,168.89,5.9196]
[1747712137445,0.04124101,168.9,168.88,5.9198]
[1747712138045,5.96054101,168.9,168.87,74.99954833]
[1747712138240,0.04124101,168.9,168.87,74.99954833]
[1747712138638,0.04124101,168.9,168.87,80.91984833]
[1747712139144,0.04124101,168.9,168.88,5.9199]
[1747712139743,0.04124101,168.9,168.89,5.9196]
[1747712140443,0.04124101,168.9,168.88,5.9199]
[1747712141345,0.04124101,168.9,168.89,5.9196]
[1747712143944,0.04124101,168.9,168.88,5.9199]
[1747712144135,0.04124101,168.9,168.87,72.01954833]
[1747712144645,0.04124101,168.9,168.89,5.9196]
[1747712144946,0.04124101,168.9,168.87,72.01954833]
[1747712145147,0.04124101,168.9,168.87,77.93974833]
[1747712147141,0.04124101,168.9,168.87,72.01954833]
[1747712148746,5.9199,168.88,168.87,72.01954833]
[1747712148939,5.9199,168.88,168.87,0.03954833]
[1747712149740,5.92,168.88,168.68,529.35]
[1747712149945,1.9903,168.87,168.72,71.98]
[1747712150145,1.9903,168.87,168.78,5.9231]
[1747712150338,1.9903,168.87,168.72,71.98]
[1747712150847,0.04050473,168.81,168.8,5.9227]
[1747712151047,0.03867563,168.82,168.8,5.9227]
[1747712151247,0.03867563,168.82,168.81,5.9224]
[1747712152548,0.03867563,168.82,168.8,5.9227]
[1747712153045,0.03867563,168.82,168.81,5.9224]
[1747712154049,0.03867563,168.82,168.8,5.9227]
[1747712154644,0.03867563,168.82,168.79,0.04284428]
[1747712155150,0.03867563,168.82,168.67,1.03098892]
[1747712155349,72.0,168.84,168.7,72.0]
[1747712156149,0.03963172,168.79,168.75,0.03804571]
[1747712156347,0.03963172,168.79,168.76,5.9239]
[1747712156652,0.03963172,168.79,168.75,0.03804571]
[1747712157451,0.03963172,168.79,168.76,5.9239]
[1747712157651,0.03963172,168.79,168.75,0.03804571]